fUST/lending_fUST_20240224
["ID","MTS","AMOUNT","RATE_DAILY","PERIOD"]
[314964438,1708704112604,9273.706933,0.00018026,2]
[314964440,1708704170847,228.549973,0.00018026,2]
[314964501,1708704632456,-155.00775039,0.00018834,2]
[314964502,1708704632471,-620.0000016,0.00018835,2]
[314964503,1708704632484,-7072.90159969,0.00018894,2]
[314964504,1708704632496,-1590.66884679,0.00018895,2]
[314964505,1708704632507,-2700.34150521,0.00018896,2]
[314964506,1708704632519,-639.93763963,0.00018897,2]
[314964507,1708704632532,-2289.51885379,0.00018899,2]
[314964509,1708704632549,-333.53178612,0.000189,2]
[314964511,1708704632561,-165.1182548,0.00019078,2]
[314964513,1708704632573,-165.24,0.00019168,3]
[314964514,1708704632584,-495.77,0.00019168,3]
[314964515,1708704632595,-264.0891318,0.00019176,2]
[314964516,1708704632607,-291.22054761,0.00019177,2]
[314964517,1708704632619,-500.0,0.00019178,2]
[314964518,1708704632630,-603.04682404,0.00019178,2]
[314964519,1708704632641,-500.0,0.00019178,2]
[314964520,1708704632652,-612.18,0.00019178,2]
[314964521,1708704632663,-500.0,0.00019178,2]
[314964522,1708704632675,-1653.28,0.00019178,2]
[314964523,1708704632688,-500.0,0.00019178,2]
[314964524,1708704632700,-500.0,0.00019178,2]
[314964525,1708704632712,-797.76,0.00019178,2]
[314964526,1708704632724,-500.0,0.00019178,2]
[314964527,1708704632736,-500.0,0.00019178,2]
[314964528,1708704632748,-1595.26,0.00019178,2]
[314964530,1708704632760,-500.0,0.00019178,2]
[314964531,1708704632772,-1327.16,0.00019178,2]
[314964532,1708704632782,-500.0,0.00019178,2]
[314964533,1708704632795,-500.0,0.00019178,2]
[314964534,1708704632805,-500.0,0.00019178,2]
[314964535,1708704632815,-457.22982726,0.00019178,2]
[314964735,1708704639819,-42.77017274,0.00019178,2]
[314964738,1708704639829,-500.0,0.00019178,2]
[314964742,1708704639838,-341.81186981,0.00019178,2]
[314964743,1708704639847,-500.0,0.00019178,2]
[314964745,1708704639857,-157.28564767,0.00019178,2]
[314964748,1708704639868,-342.71435233,0.00019178,2]
[314964750,1708704639877,-500.0,0.00019178,2]
[314964752,1708704639886,-301.27908295,0.00019178,2]
[314964755,1708704639897,-198.72091705,0.00019178,2]
[314964758,1708704639906,-573.30912752,0.00019178,2]
[314964760,1708704639915,-500.0,0.00019178,2]
[314964762,1708704639926,-500.0,0.00019178,2]
[314964764,1708704639935,-500.0,0.00019178,2]
[314964766,1708704639945,-500.4369345,0.00019178,2]
[314964768,1708704639954,-703.4,0.00019178,2]
[314964770,1708704639963,-500.0,0.00019178,2]
[314964772,1708704639972,-1101.96,0.00019178,2]
[314964774,1708704639982,-500.0,0.00019178,2]
[314964776,1708704639991,-631.02090704,0.00019178,2]
[314964778,1708704640001,-744.51,0.00019178,2]
[314964780,1708704640013,-419.28322571,0.00019178,2]
[314964784,1708704640042,-80.71677429,0.00019178,2]
[314964786,1708704640053,-500.0,0.00019178,2]
[314964788,1708704640062,-500.0,0.00019178,2]
[314964790,1708704640071,-500.0,0.00019178,2]
[314964792,1708704640080,-500.0,0.00019178,2]
[314964794,1708704640089,-8497.46,0.00019178,2]
[314964796,1708704640099,-14566.48,0.00019178,2]
[314964798,1708704640108,-500.0,0.00019178,2]
[314964800,1708704640117,-500.0,0.00019178,2]
[314964802,1708704640127,-500.0,0.00019178,2]
[314964804,1708704640136,-500.0,0.00019178,2]
[314964806,1708704640145,-769.47,0.00019178,2]
[314964808,1708704640155,-2290.84,0.00019178,2]
[314964810,1708704640164,-500.0,0.00019178,2]
[314964812,1708704640173,-500.0,0.00019178,2]
[314964814,1708704640183,-500.0,0.00019178,2]
[314964816,1708704640193,-889.89,0.00019178,2]
[314964818,1708704640203,-500.0,0.00019178,2]
[314964820,1708704640212,-500.0,0.00019178,2]
[314964822,1708704640222,-1208.56,0.00019178,2]
[314964824,1708704640232,-1173.68,0.00019178,2]
[314964826,1708704640241,-1054.77,0.00019178,2]
[314964828,1708704640250,-1433.21,0.00019178,2]
[314964830,1708704640259,-4689.83,0.00019178,2]
[314964832,1708704640269,-607.72,0.00019178,2]
[314964834,1708704640279,-3076.61,0.00019178,2]
[314964836,1708704640288,-6218.45,0.00019178,2]
[314964838,1708704640300,-500.0,0.00019178,2]
[314964840,1708704640309,-1804.72,0.00019178,2]
[314964842,1708704640319,-1256.07,0.00019178,2]
[314964844,1708704640329,-500.0,0.00019178,2]
[314964846,1708704640338,-500.0,0.00019178,2]
[314964848,1708704640348,-14428.24,0.00019178,2]
[314964850,1708704640359,-290.84173611,0.00019178,2]
[314964852,1708704640370,-621.59662477,0.00019178,2]
[314964854,1708704640379,-500.0,0.00019178,2]
[314964856,1708704640390,-1719.4,0.00019178,2]
[314964858,1708704640399,-500.0,0.00019178,2]
[314964860,1708704640410,-1494.33,0.00019178,2]
[314964862,1708704640419,-1867.35,0.00019178,2]
[314964864,1708704640428,-500.0,0.00019178,2]
[314964866,1708704640437,-1243.41,0.00019178,2]
[314964868,1708704640446,-157.56559089,0.00019178,2]
[314964869,1708704640455,-500.0,0.00019178,2]
[314964872,1708704640465,-500.0,0.00019178,2]
[314964873,1708704640475,-500.0,0.00019178,2]
[314964875,1708704640485,-500.0,0.00019178,2]
[314964877,1708704640494,-2286.47,0.00019178,2]
[314964879,1708704640503,-500.0,0.00019178,2]
[314964881,1708704640512,-500.0,0.00019178,2]
[314964883,1708704640522,-500.0,0.00019178,2]
[314964885,1708704640531,-500.0,0.00019178,2]
[314964886,1708704640540,-500.0,0.00019178,2]
[314964887,1708704640552,-500.0,0.00019178,2]
[314964888,1708704640561,-500.0,0.00019178,2]
[314964889,1708704640570,-1421.57,0.00019178,2]
[314964890,1708704640580,-532.14463366,0.00019178,2]
[314964891,1708704640589,-169.192562,0.00019178,2]
[314964893,1708704640599,-169.270109,0.00019178,2]
[314964894,1708704640609,-166.666666,0.00019178,2]
[314964896,1708704640618,-500.0,0.0001933,2]
[314964898,1708704640628,-6077.03534538,0.00019352,2]
[314964899,1708704640637,-1000.0,0.00019367,2]
[314964900,1708704640646,-1000.0,0.00019369,2]
[314964901,1708704640655,-1000.0,0.00019382,2]
[314964902,1708704640664,-1000.0,0.00019393,2]
[314964903,1708704640673,-300.0,0.00019423,2]
[314964904,1708704640683,-1000.0,0.00019432,2]
[314964905,1708704640691,-1000.0,0.00019447,2]
[314964906,1708704640701,-500.0,0.00019451,2]
[314964907,1708704640711,-204.79628622,0.00019451,2]
[314964908,1708704640720,-500.0,0.00019451,2]
[314964909,1708704640729,-628.48564665,0.00019451,2]
[314964910,1708704640739,-999.34977266,0.00019451,2]
[314964911,1708704640748,-500.0,0.00019451,2]
[314964912,1708704640757,-500.0,0.00019451,2]
[314964914,1708704640767,-500.0,0.00019452,2]
[314964916,1708704640776,-612.18,0.00019452,2]
[314964918,1708704640785,-1653.28,0.00019452,2]
[314964920,1708704640796,-500.0,0.00019452,2]
[314964922,1708704640806,-797.76,0.00019452,2]
[314964924,1708704640815,-1595.26,0.00019452,2]
[314964926,1708704640825,-1327.16,0.00019452,2]
[314964928,1708704640835,-576.95908972,0.00019452,2]
[314964930,1708704640844,-500.0,0.00019452,2]
[314964932,1708704640854,-500.0,0.00019452,2]
[314964934,1708704640863,-703.4,0.00019452,2]
[314964936,1708704640872,-500.0,0.00019452,2]
[314964938,1708704640881,-1101.96,0.00019452,2]
[314964940,1708704640890,-500.0,0.00019452,2]
[314964942,1708704640900,-744.51,0.00019452,2]
[314964944,1708704640909,-500.0,0.00019452,2]
[314964946,1708704640919,-8497.46,0.00019452,2]
[314964947,1708704640928,-14566.48,0.00019452,2]
[314964949,1708704640937,-500.0,0.00019452,2]
[314964951,1708704640946,-500.0,0.00019452,2]
[314964953,1708704640956,-769.47,0.00019452,2]
[314964955,1708704640965,-2290.84,0.00019452,2]
[314964957,1708704640974,-500.0,0.00019452,2]
[314964959,1708704640983,-500.0,0.00019452,2]
[314964961,1708704640993,-889.89,0.00019452,2]
[314964963,1708704641002,-500.0,0.00019452,2]
[314964965,1708704641012,-1208.56,0.00019452,2]
[314964967,1708704641021,-1173.68,0.00019452,2]
[314964969,1708704641030,-27.01922564,0.00019452,2]
[314965432,1708704645858,-151.0,0.00019178,2]
[314965435,1708704645868,-151.0,0.00019432,2]
[314965438,1708704645877,-1027.75077436,0.00019452,2]
[314965441,1708704645887,-1433.21,0.00019452,2]
[314965443,1708704645897,-2172.03922564,0.00019452,2]
[314965464,1708704645973,-1906.10818524,0.00019452,2]
[314965468,1708704645985,-611.68258912,0.00019452,2]
[314965471,1708704645994,-607.72,0.00019452,2]
[314965474,1708704646003,-1278.41528144,0.00019452,2]
[314965478,1708704646017,-1798.19471856,0.00019452,2]
[314965481,1708704646026,-6218.45,0.00019452,2]
[314965485,1708704646036,-500.0,0.00019452,2]
[314965488,1708704646045,-1804.72,0.00019452,2]
[314965491,1708704646057,-1256.07,0.00019452,2]
[314965496,1708704646067,-500.0,0.00019452,2]
[314965498,1708704646076,-164.02171444,0.00019452,2]
[314965500,1708704646088,-3541.25831984,0.00019452,2]
[314965530,1708704646341,-2782.5000002,0.00019452,2]
[314965532,1708704646355,-7940.45996552,0.00019452,2]
[314965534,1708704646371,-500.0,0.00019452,2]
[314965536,1708704646381,-1719.4,0.00019452,2]
[314965538,1708704646390,-500.0,0.00019452,2]
[314965540,1708704646400,-1494.33,0.00019452,2]
[314965542,1708704646411,-1867.35,0.00019452,2]
[314965544,1708704646422,-1243.41,0.00019452,2]
[314965546,1708704646431,-500.0,0.00019452,2]
[314965548,1708704646440,-500.0,0.00019452,2]
[314965551,1708704646452,-2286.47,0.00019452,2]
[314965553,1708704646461,-500.0,0.00019452,2]
[314965554,1708704646470,-590.39,0.00019452,2]
[314965556,1708704646480,-500.0,0.00019452,2]
[314965558,1708704646489,-1421.57,0.00019452,2]
[314965561,1708704646498,-151.0,0.00019452,2]
[314965563,1708704646507,-155.089036,0.00019452,2]
[314965564,1708704646518,-3700.05268045,0.00019462,2]
[314965566,1708704646528,-478.42828553,0.00019464,2]
[314965568,1708704646539,-478.42828553,0.0001947,2]
[314965570,1708704646550,-1921.79049157,0.00019473,2]
[314965572,1708704646559,-478.42828553,0.00019479,2]
[314965574,1708704646568,-1921.79049157,0.00019481,2]
[314965576,1708704646577,-3700.05268045,0.00019482,2]
[314965578,1708704646586,-3700.05268045,0.00019482,2]
[314965580,1708704646595,-1921.79049157,0.0001949,2]
[314965582,1708704646604,-1000.0,0.00019497,2]
[314965584,1708704646613,-580.0,0.000195,2]
[314965586,1708704646622,-1000.0,0.00019511,2]
[314965588,1708704646631,-11332.16747877,0.00019526,2]
[314965590,1708704646640,-1000.0,0.00019534,2]
[314965592,1708704646649,-1000.0,0.00019537,2]
[314965594,1708704646658,-1000.0,0.00019622,2]
[314965596,1708704646667,-166.666666,0.00019627,2]
[314965598,1708704646676,-300.0,0.00019669,2]
[314965600,1708704646685,-360.91958379,0.000197,2]
[314965602,1708704646695,-360.91958379,0.000197,2]
[314965604,1708704646704,-360.91958379,0.000197,2]
[314965606,1708704646713,-2791.26781155,0.000197,2]
[314965608,1708704646722,-2791.26781155,0.000197,2]
[314965610,1708704646731,-2791.26781155,0.000197,2]
[314965612,1708704646740,-1449.77177432,0.000197,2]
[314965614,1708704646749,-1449.77177432,0.000197,2]
[314965616,1708704646758,-1449.77177432,0.000197,2]
[314965618,1708704646768,-1000.0,0.00019716,2]
[314965620,1708704646777,-60713.03,0.00019716,3]
[314965622,1708704646786,-500.0,0.00019725,2]
[314965625,1708704646799,-500.0,0.00019725,2]
[314965626,1708704646808,-500.0,0.00019726,2]
[314965628,1708704646818,-612.18,0.00019726,2]
[314965630,1708704646827,-1653.28,0.00019726,2]
[314965632,1708704646837,-500.0,0.00019726,2]
[314965634,1708704646846,-797.76,0.00019726,2]
[314965636,1708704646856,-1595.26,0.00019726,2]
[314965638,1708704646866,-1327.16,0.00019726,2]
[314965640,1708704646876,-500.0,0.00019726,2]
[314965642,1708704646885,-500.0,0.00019726,2]
[314965644,1708704646895,-703.4,0.00019726,2]
[314965647,1708704646904,-156.09,0.00019726,2]
[314965649,1708704646913,-1101.96,0.00019726,2]
[314965651,1708704646923,-744.51,0.00019726,2]
[314965653,1708704646932,-500.0,0.00019726,2]
[314965654,1708704646942,-8497.46,0.00019726,2]
[314965656,1708704646951,-14566.48,0.00019726,2]
[314965658,1708704646961,-374.58,0.00019726,2]
[314965660,1708704646971,-500.0,0.00019726,2]
[314965662,1708704646981,-769.47,0.00019726,2]
[314965664,1708704646990,-2290.84,0.00019726,2]
[314965666,1708704647000,-500.0,0.00019726,2]
[314965668,1708704647009,-500.0,0.00019726,2]
[314965671,1708704647019,-889.89,0.00019726,2]
[314965672,1708704647028,-500.0,0.00019726,2]
[314965674,1708704647037,-1208.56,0.00019726,2]
[314965677,1708704647049,-1173.68,0.00019726,2]
[314965679,1708704647058,-1054.77,0.00019726,2]
[314965680,1708704647067,-1433.21,0.00019726,2]
[314965682,1708704647077,-4689.83,0.00019726,2]
[314965684,1708704647087,-607.72,0.00019726,2]
[314965686,1708704647097,-3076.61,0.00019726,2]
[314965688,1708704647106,-6218.45,0.00019726,2]
[314965691,1708704647116,-1804.72,0.00019726,2]
[314965692,1708704647125,-1256.07,0.00019726,2]
[314965695,1708704647135,-500.0,0.00019726,2]
[314965697,1708704647144,-8082.32727223,0.00019726,2]
[314965699,1708704647158,-2110.083756,0.00019726,2]
[314965701,1708704647169,-566.73009358,0.00019726,2]
[314965703,1708704647181,-2536.0,0.00019726,2]
[314965705,1708704647193,-1133.09887819,0.00019726,2]
[314965707,1708704647203,-268.71919868,0.00019726,2]
[314965709,1708704647213,-1091.88869058,0.00019726,2]
[314965712,1708704647224,-627.51130942,0.00019726,2]
[314965714,1708704647233,-500.0,0.00019726,2]
[314965716,1708704647243,-1494.33,0.00019726,2]
[314965717,1708704647253,-1867.35,0.00019726,2]
[314965731,1708704647263,-1243.41,0.00019726,2]
[314965733,1708704647391,-500.0,0.00019726,2]
[314965735,1708704647401,-500.0,0.00019726,2]
[314965737,1708704647411,-2286.47,0.00019726,2]
[314965739,1708704647420,-500.0,0.00019726,2]
[314965741,1708704647430,-500.0,0.00019726,2]
[314965743,1708704647439,-1421.57,0.00019726,2]
[314965745,1708704647449,-153.35119473,0.00019802,2]
[314965747,1708704647458,-300.1050424,0.00019832,2]
[314965749,1708704647468,-2667.95120708,0.000199,2]
[314965751,1708704647478,-300.0,0.00019915,2]
[314965753,1708704647487,-500.0,0.00019982,2]
[314965755,1708704647497,-6504.95,0.00019997,2]
[314965757,1708704647505,-170.20237174,0.00019998,2]
[314965759,1708704647514,-1275.19159014,0.00019998,2]
[314965761,1708704647524,-795.0,0.00019998,2]
[314965763,1708704647534,-413.80815946,0.00019998,2]
[314965765,1708704647543,-3347.92733238,0.00019999,2]
[314965767,1708704647557,-601.08796236,0.00019999,2]
[314965769,1708704647567,-500.0,0.00019999,2]
[314965771,1708704647576,-76.31008319,0.00019999,2]
[314965775,1708704647617,-423.68991681,0.00019999,2]
[314965777,1708704647626,-500.0,0.00019999,2]
[314965779,1708704647635,-500.0,0.00019999,2]
[314965781,1708704647644,-500.0,0.00019999,2]
[314965783,1708704647653,-500.0,0.00019999,2]
[314965784,1708704647662,-500.0,0.00019999,2]
[314965786,1708704647671,-500.0,0.00019999,2]
[314965788,1708704647680,-493.53950116,0.00019999,2]
[314965790,1708704647690,-500.0,0.00019999,2]
[314965791,1708704647699,-500.0,0.00019999,2]
[314965793,1708704647708,-500.0,0.00019999,2]
[314965795,1708704647717,-500.0,0.00019999,2]
[314965797,1708704647726,-500.0,0.00019999,2]
[314965798,1708704647735,-500.0,0.00019999,2]
[314965800,1708704647744,-315.0,0.00019999,2]
[314965802,1708704647753,-191.91543046,0.00019999,2]
[314965804,1708704647762,-500.0,0.00019999,2]
[314965806,1708704647772,-500.0,0.00019999,2]
[314965808,1708704647781,-500.0,0.00019999,2]
[314965809,1708704647793,-500.0,0.00019999,2]
[314965811,1708704647805,-500.0,0.00019999,2]
[314965813,1708704647814,-500.0,0.00019999,2]
[314965815,1708704647823,-651.15106189,0.00019999,2]
[314965816,1708704647832,-500.0,0.00019999,2]
[314965818,1708704647841,-500.0,0.00019999,2]
[314965820,1708704647850,-500.0,0.00019999,2]
[314965822,1708704647860,-329.72322435,0.00019999,2]
[314965824,1708704647869,-500.0,0.00019999,2]
[314965826,1708704647878,-500.0,0.00019999,2]
[314965827,1708704647888,-500.0,0.00019999,2]
[314965829,1708704647897,-500.0,0.00019999,2]
[314965831,1708704647906,-400.0,0.00019999,2]
[314965833,1708704647916,-6270.80390442,0.0002,3]
[314965835,1708704647925,-18501.39594055,0.0002,2]
[314967957,1708705753816,328.26844985,0.00017982,2]
[314967961,1708705798368,164.22477025,0.00017982,2]
[314968006,1708705832734,-155.02325349,0.00018082,2]
[314968008,1708705832744,-502.37681168,0.00018083,2]
[314968010,1708705832753,-176.6995601,0.00018093,2]
[314968012,1708705832765,-351.00488947,0.000189,2]
[314968014,1708705832774,-1000.0,0.00018934,2]
[314968016,1708705832783,-1000.0,0.00018947,2]
[314968018,1708705832793,-732.52,0.00019168,3]
[314968020,1708705832803,-500.0,0.00019178,2]
[314968022,1708705832812,-16.50689201,0.00019178,2]
[314968703,1708705839747,-331.50556864,0.00019178,2]
[314968704,1708705839759,-308.90753935,0.00019178,2]
[314968705,1708705839769,-500.0,0.00019178,2]
[314968706,1708705839778,-275.64863125,0.00019178,2]
[314968707,1708705839790,-224.35136875,0.00019178,2]
[314968708,1708705839799,-500.0,0.00019178,2]
[314968709,1708705839809,-1166.97,0.00019178,2]
[314968710,1708705839818,-96.27392951,0.00019178,2]
[314968712,1708705839831,-403.72607049,0.00019178,2]
[314968713,1708705839840,-500.0,0.00019178,2]
[314968714,1708705839850,-500.0,0.00019178,2]
[314968715,1708705839861,-500.0,0.00019178,2]
[314968716,1708705839871,-500.0,0.00019178,2]
[314968717,1708705839880,-681.88,0.00019178,2]
[314968718,1708705839889,-500.0,0.00019178,2]
[314968719,1708705839899,-780.25,0.00019178,2]
[314968720,1708705839909,-500.0,0.00019178,2]
[314968721,1708705839919,-1541.92,0.00019178,2]
[314968722,1708705839929,-500.0,0.00019178,2]
[314968723,1708705839938,-500.0,0.00019178,2]
[314968724,1708705839950,-500.0,0.00019178,2]
[314968725,1708705839960,-500.0,0.00019178,2]
[314968726,1708705839969,-500.0,0.00019178,2]
[314968727,1708705839979,-151.72075891,0.00019178,2]
[314968728,1708705839991,-647.76924109,0.00019178,2]
[314968729,1708705840001,-500.0,0.00019178,2]
[314968730,1708705840010,-500.0,0.00019178,2]
[314968732,1708705840019,-501.24875421,0.00019178,2]
[314968734,1708705840029,-500.0,0.00019178,2]
[314968735,1708705840039,-500.0,0.00019178,2]
[314968736,1708705840048,-500.0,0.00019178,2]
[314968737,1708705840057,-395.21053696,0.00019178,2]
[314969153,1708705845200,-104.78946304,0.00019178,2]
[314969155,1708705845211,-500.0,0.00019178,2]
[314969157,1708705845221,-152.48060105,0.00019178,2]
[314969163,1708705845266,-0.23094392,0.00019178,2]
[314969166,1708705845279,-352.82905648,0.00019178,2]
[314969168,1708705845291,-147.17094352,0.00019178,2]
[314969170,1708705845300,-1004.45,0.00019178,2]
[314969172,1708705845309,-651.45,0.00019178,2]
[314969174,1708705845318,-500.0,0.00019178,2]
[314969176,1708705845327,-500.0,0.00019178,2]
[314969178,1708705845336,-500.0,0.00019178,2]
[314969180,1708705845345,-500.0,0.00019178,2]
[314969182,1708705845354,-533.18850347,0.00019178,2]
[314969184,1708705845363,-500.0,0.00019178,2]
[314969186,1708705845372,-500.0,0.00019178,2]
[314969188,1708705845380,-500.0,0.00019178,2]
[314969190,1708705845389,-500.0,0.00019178,2]
[314969192,1708705845398,-500.0,0.00019178,2]
[314969194,1708705845407,-500.0,0.00019178,2]
[314969196,1708705845416,-284.58343261,0.00019178,2]
[314969197,1708705845429,-500.0,0.00019178,2]
[314969199,1708705845437,-254.23162194,0.00019178,2]
[314969202,1708705845449,-840.11837806,0.00019178,2]
[314969204,1708705845463,-640.89287761,0.00019178,2]
[314969206,1708705845472,-188.01992464,0.00019178,2]
[314969208,1708705845484,-905.68007536,0.00019178,2]
[314969210,1708705845494,-952.9,0.00019178,2]
[314969212,1708705845505,-500.0,0.00019178,2]
[314969214,1708705845514,-1372.77,0.00019178,2]
[314969216,1708705845524,-500.0,0.00019178,2]
[314969218,1708705845536,-500.0,0.00019178,2]
[314969220,1708705845546,-4299.8,0.00019178,2]
[314969222,1708705845556,-552.59,0.00019178,2]
[314969224,1708705845565,-5568.88,0.00019178,2]
[314969226,1708705845575,-500.0,0.00019178,2]
[314969228,1708705845585,-2745.33,0.00019178,2]
[314969230,1708705845595,-12624.71,0.00019178,2]
[314969233,1708705845617,-1671.7,0.00019178,2]
[314969236,1708705845630,-1099.06,0.00019178,2]
[314969238,1708705845640,-500.0,0.00019178,2]
[314969240,1708705845650,-500.0,0.00019178,2]
[314969242,1708705845659,-500.0,0.00019178,2]
[314969244,1708705845671,-340.64692406,0.00019178,2]
[314969246,1708705845680,-1566.47,0.00019178,2]
[314969248,1708705845690,-500.0,0.00019178,2]
[314969250,1708705845700,-500.0,0.00019178,2]
[314969252,1708705845714,-1700.13,0.00019178,2]
[314969254,1708705845724,-1134.34,0.00019178,2]
[314969256,1708705845738,-1357.98,0.00019178,2]
[314969258,1708705845748,-500.0,0.00019178,2]
[314969260,1708705845758,-500.0,0.00019178,2]
[314969262,1708705845767,-1233.84,0.00019178,2]
[314969264,1708705845778,-500.0,0.00019178,2]
[314969266,1708705845787,-500.0,0.00019178,2]
[314969268,1708705845797,-500.0,0.00019178,2]
[314969270,1708705845807,-500.0,0.00019178,2]
[314969272,1708705845816,-500.0,0.00019178,2]
[314969275,1708705845828,-500.0,0.00019178,2]
[314969277,1708705845837,-627.59,0.00019178,2]
[314969279,1708705845847,-1264.71,0.00019178,2]
[314969281,1708705845856,-8679.04256603,0.00019178,2]
[314969284,1708705845877,-475.58234541,0.00019178,2]
[314969288,1708705845908,-4092.51508856,0.00019178,2]
[314969290,1708705845917,-500.0,0.00019178,2]
[314969292,1708705845928,-2906.83130027,0.00019178,2]
[314969295,1708705845940,-4860.73869973,0.00019178,2]
[314969297,1708705845949,-500.0,0.00019178,2]
[314969299,1708705845963,-500.0,0.00019178,2]
[314969301,1708705845973,-501.05568554,0.00019178,2]
[314969303,1708705845983,-500.0,0.00019178,2]
[314969305,1708705845992,-500.0,0.00019178,2]
[314969307,1708705846001,-1650.48,0.00019178,2]
[314969309,1708705846010,-558.82051196,0.00019178,2]
[314969311,1708705846026,-1671.65948804,0.00019178,2]
[314969313,1708705846035,-225.82251196,0.00019178,2]
[314969316,1708705846047,-472.91748804,0.00019178,2]
[314969318,1708705846056,-47.08251166,0.00019178,2]
[314969397,1708705846783,-122.11004934,0.00019178,2]
[314969399,1708705846793,-166.666666,0.00019178,2]
[314969400,1708705846803,-1000.0,0.00019323,2]
[314969402,1708705846813,-1000.0,0.00019329,2]
[314969404,1708705846823,-500.0,0.00019367,2]
[314969406,1708705846833,-1000.0,0.00019397,2]
[314969408,1708705846843,-300.0,0.00019447,2]
[314969410,1708705846852,-500.0,0.00019451,2]
[314969412,1708705846862,-500.0,0.00019451,2]
[314969414,1708705846872,-500.0,0.00019452,2]
[314969416,1708705846881,-656.92,0.00019452,2]
[314969419,1708705846890,-191.23628942,0.00019452,2]
[314969420,1708705846899,-500.0,0.00019452,2]
[314969423,1708705846907,-1166.97,0.00019452,2]
[314969425,1708705846916,-500.0,0.00019452,2]
[314969427,1708705846927,-500.0,0.00019452,2]
[314969429,1708705846935,-634.85,0.00019452,2]
[314969431,1708705846945,-500.0,0.00019452,2]
[314969433,1708705846957,-500.0,0.00019452,2]
[314969435,1708705846966,-681.88,0.00019452,2]
[314969437,1708705846975,-780.25,0.00019452,2]
[314969439,1708705846984,-1541.92,0.00019452,2]
[314969441,1708705846993,-500.0,0.00019452,2]
[314969443,1708705847002,-799.49,0.00019452,2]
[314969445,1708705847011,-500.0,0.00019452,2]
[314969447,1708705847020,-500.0,0.00019452,2]
[314969448,1708705847029,-500.0,0.00019452,2]
[314969451,1708705847039,-500.0,0.00019452,2]
[314969452,1708705847048,-500.0,0.00019452,2]
[314969454,1708705847057,-1004.45,0.00019452,2]
[314969456,1708705847066,-651.45,0.00019452,2]
[314969458,1708705847074,-233.51831146,0.00019452,2]
[314969460,1708705847085,-500.0,0.00019452,2]
[314969462,1708705847094,-500.0,0.00019452,2]
[314969464,1708705847103,-500.0,0.00019452,2]
[314969466,1708705847112,-362.09268378,0.00019452,2]
[314969468,1708705847122,-500.0,0.00019452,2]
[314969470,1708705847131,-500.0,0.00019452,2]
[314969472,1708705847140,-500.0,0.00019452,2]
[314969474,1708705847150,-500.0,0.00019452,2]
[314969476,1708705847159,-500.0,0.00019452,2]
[314969478,1708705847168,-1094.35,0.00019452,2]
[314969480,1708705847177,-1093.7,0.00019452,2]
[314969482,1708705847187,-952.9,0.00019452,2]
[314969484,1708705847196,-500.0,0.00019452,2]
[314969486,1708705847207,-1372.77,0.00019452,2]
[314969488,1708705847217,-500.0,0.00019452,2]
[314969490,1708705847226,-4299.8,0.00019452,2]
[314969492,1708705847238,-552.59,0.00019452,2]
[314969494,1708705847247,-5568.88,0.00019452,2]
[314969496,1708705847256,-500.0,0.00019452,2]
[314969498,1708705847266,-2745.33,0.00019452,2]
[314969500,1708705847275,-12624.71,0.00019452,2]
[314969502,1708705847284,-1306.37661375,0.00019452,2]
[314969512,1708705847371,-365.32338625,0.00019452,2]